Cogmind - Beta 13 *** ADVENTURER MODE // 2024.03.15 @ 17:40:15 Player: bryce Result: Destroyed by S-43 Plague with Heavy Machine Gun Performance ------------- Evolutions (7) 3500 Regions Visited (8) 1600 Robots Destroyed (79) 395 Value Destroyed (3081) 3081 Prototype IDs (3) 60 Alien Tech Used (0) 0 Bonus (292) 292 TOTAL SCORE: 8928 Bonus ------- Pacifist 200 High Alert Combat Kills 92 Cogmind --------- Core Integrity 0/1300 Matter 142/300 Energy 99/100 System Corruption 10% Temperature Cool (0) Movement Core (50) Location -3/Research Parts ------- > --- POWER (4) -------- (None) > --- PROPULSION (6) --- (None) > --- UTILITY (6) ------ (None) > --- WEAPON (5) ------- (None) > --- INVENTORY (5) ---- Dispersion Rifle Quantum Rifle Compact HERF Cannon Peak State ------------ > --- POWER ------------ Light Angular Momentum Engine Enhanced Fission Core > --- PROPULSION ------- Improved Treads Armored Medium Treads Armored Medium Treads Wheel Wheel > --- UTILITY ---------- Medium Storage Unit Hardened Medium Armor Plating Force Field > --- WEAPON ----------- Improved Assault Rifle Improved Heavy Machine Gun KE Penetrator > --- INVENTORY -------- Improved Titanium Leg Improved Titanium Leg Improved Titanium Leg Improved Titanium Leg Disruptor Cannon Improved Assault Rifle Improved Assault Rifle Magnetic Acceleration Cannon [Rating: 55] Favorites ----------- Power Improved Ion Engine Engine Improved Ion Engine Power Core Enhanced Fission Core Propulsion Armored Treads Treads Armored Treads Leg Aluminum Leg Wheel Wheel Flight Unit Impulse Thruster Array Utility Small Storage Unit Device Force Field Storage Small Storage Unit Processor Advanced Targeting Computer Protection Backup Plating I Weapon Improved Assault Rifle Energy Gun Beam Rifle Energy Cannon Heavy Particle Cannon Ballistic Gun Improved Assault Rifle Ballistic Cannon Flak Cannon Build | -11 -10 -9 -8 -7 -6 -5 -4 -3 ------- Run | Yrd Mat Mat Mat Fac Fac Fac Fac Res Slots Evolved 14 | . . 2 2 2 2 2 2 2 Power 3 | . . . 1 . . . . 2 Propulsion 4 | . . 1 . 1 1 . 1 . Utility 4 | . . 1 . 1 . 1 1 . Weapon 3 | . . . 1 . 1 1 . . Parts Attached 111 | 6 . 11 38 5 13 14 7 17 Power 18 | 1 . 3 9 . 2 2 1 . Engine 14 | 1 . 3 8 . 1 1 . . Core 4 | . . . 1 . 1 1 1 . Reactor . | . . . . . . . . . Propulsion 38 | 2 . 3 12 2 3 5 2 9 Treads 13 | . . . 5 2 1 3 . 2 Leg 20 | 2 . 3 7 . 2 . 2 4 Wheel 3 | . . . . . . 2 . 1 Hover . | . . . . . . . . . Flight 2 | . . . . . . . . 2 Utility 19 | 1 . 3 7 . 3 4 1 . Device 2 | . . . . . 1 1 . . Storage 9 | 1 . 1 3 . 1 2 1 . Processor 1 | . . 1 . . . . . . Hackware . | . . . . . . . . . Protection 7 | . . 1 4 . 1 1 . . Artifact . | . . . . . . . . . Weapon 36 | 2 . 2 10 3 5 3 3 8 Energy Gun 6 | 1 . 1 . . . . . 4 Energy Cannon 4 | . . . 2 . . . . 2 Ballistic Gun 20 | 1 . 1 7 3 3 3 2 . Ballistic Cannon 6 | . . . 1 . 2 . 1 2 Launcher . | . . . . . . . . . Special Weapon . | . . . . . . . . . Impact Weapon . | . . . . . . . . . Slashing Weapon . | . . . . . . . . . Piercing Weapon . | . . . . . . . . . Special Melee Weapon . | . . . . . . . . . Unidentified Prototypes 3 | . . . . 1 . 2 . . Parts Lost 49 | . . 2 9 . 15 4 . 19 Power 8 | . . . 4 . 2 . . 2 Propulsion 19 | . . 1 2 . 4 3 . 9 Utility 7 | . . . 2 . 3 1 . 1 Weapon 15 | . . 1 1 . 6 . . 7 Highest Loss Streak 15 | . . 1 2 . 15 3 . 15 To Critical Strikes 1 | . . . . . 1 . . . Average Slot Usage (%) 73 | . 85 82 94 79 91 42 52 44 Engine 8 | . 14 11 15 15 8 . 1 . Core 2 | . . . . . 3 1 8 6 Treads 13 | . . . 14 18 23 13 10 6 Leg 7 | . 28 28 10 . 5 . . 7 Device 1 | . . . . . 4 . 5 2 Storage 9 | . 14 12 9 15 12 3 9 7 Processor 2 | . . . 8 . . . . . Protection 4 | . . 8 8 7 5 2 . . Energy Gun 1 | . 14 11 . . . . . . Energy Cannon 2 | . . . 2 11 5 . . . Ballistic Gun 14 | . 14 11 18 10 17 14 15 10 Ballistic Cannon 1 | . . . 5 . . . . . Naked Turns 89 | . . . . . 16 12 . 61 Heaviest Build 68 | 11 11 28 36 37 68 59 60 56 Greatest Support 77 | 20 20 30 42 62 68 77 54 60 Greatest Overweight (x) 6 | 3 . 1 1 . 6 1 1 2 Average Overweight (x) . | . . . . . . . . . Largest Inventory Capacity 10 | 8 8 8 10 8 10 10 10 10 Average Capacity 8 | 7 8 8 8 8 8 8 10 8 Most Carried 10 | 6 6 8 8 8 9 10 10 6 Average Carried 6 | 4 6 7 7 7 7 7 5 3 Final Capacity 10 | 8 8 8 8 8 5 10 10 5 Final Carried 8 | 6 6 8 8 7 5 8 4 3 Class Distribution -------------------- 50% | Tank 18% | Scavenger-Gunner 16% | Mutant 7% | Gunner 3% | Scavenger-Tank 3% | Scavenger-Mutant Dominant Class ---------------- Mutant | -10/Materials Mutant | -9/Materials Scavenger-Gunner | -8/Materials Tank | -7/Factory Tank | -6/Factory Scavenger-Tank | -5/Factory Tank | -4/Factory Tank | -3/Research Resources | -11 -10 -9 -8 -7 -6 -5 -4 -3 ----------- Run | Yrd Mat Mat Mat Fac Fac Fac Fac Res Matter Collected 2236 | 205 . 203 933 30 316 183 . 366 Remotely . | . . . . . . . . . Salvage Created 3471 | . . 519 1526 73 520 394 . 439 Parts 196 | . . 34 83 4 28 18 . 29 Haulers Intercepted 1 | . . . . . . 1 . . Recyclers Shooed 2 | . . . 1 . 1 . . . Parts Field Recycled . | . . . . . . . . . Retrieved Matter . | . . . . . . . . . Parts Self-Destructed . | . . . . . . . . . Prevented . | . . . . . . . . . Kills | -11 -10 -9 -8 -7 -6 -5 -4 -3 ------- Run | Yrd Mat Mat Mat Fac Fac Fac Fac Res Combat Hostiles Destroyed 71 | . . 12 33 1 14 4 . 7 Guns 61 | . . 12 27 1 14 4 . 3 Cannons 9 | . . . 5 . . . . 4 Classes Destroyed 11 | . . 4 4 . 1 2 . . Worker 1 | . . . 1 . . . . . Builder 2 | . . 1 . . . 1 . . Tunneler 1 | . . . . . . 1 . . Hauler 1 | . . . . . . 1 . . Recycler 3 | . . . 3 . . . . . Swarmer 17 | . . 2 6 . 9 . . . Grunt 33 | . . 7 18 . 3 3 . 2 Brawler 1 | . . . 1 . . . . . Duelist 2 | . . . 2 . . . . . Sentry 11 | . . 3 6 1 . 1 . . Programmer 7 | . . . . . 2 . . 5 Best Kill Streak 8 | . . 6 8 1 4 2 . 2 Combat Bots Only 6 | . . 5 6 1 4 2 . 2 Max Kills in Single Turn 1 | . . 1 1 1 1 1 . 1 Gunslinging . | . . . . . . . . . Exploded . | . . . . . . . . . Melee . | . . . . . . . . . Uniques/NPCs Destroyed . | . . . . . . . . . Combat | -11 -10 -9 -8 -7 -6 -5 -4 -3 -------- Run | Yrd Mat Mat Mat Fac Fac Fac Fac Res Hostile Shots Fired 1361 | . . 77 223 36 393 141 86 405 Missed 423 | . . 20 50 11 130 47 23 142 Damage Taken 11511 | . . 526 2157 139 2615 1426 866 3782 Core 2245 | . . 103 239 4 376 134 72 1317 Absorbed by Shields 888 | . . . . . 484 76 187 141 Redirected to Shielding 190 | . . . 190 . . . . . Ignored by Resistances 3535 | . . 157 615 46 912 408 298 1099 Core Remaining (%) 82 | 100 100 74 56 99 55 86 93 . Volleys Fired 435 | . . 51 192 10 78 50 1 53 Largest 3 | . . 1 3 1 1 2 1 2 Hottest 156 | . . 23 63 63 53 38 23 156 Shots Fired 455 | . . 51 196 10 79 55 1 63 Gun 397 | . . 51 171 5 73 55 1 41 Cannon 58 | . . . 25 5 6 . . 22 Launcher . | . . . . . . . . . Special . | . . . . . . . . . Kinetic 430 | . . 51 191 5 79 55 1 48 Thermal 10 | . . . . . . . . 10 Explosive . | . . . . . . . . . Electromagnetic 15 | . . . 5 5 . . . 5 Robot Hit Streak 53 | . . 15 46 28 53 14 7 24 Robot Miss Streak 4 | . . 1 4 . 2 2 . 2 Penetration Max . | . . . . . . . . . Secondary Targets . | . . . . . . . . . Shots Hit Robots 415 | . . 44 182 10 76 49 1 53 Core Hits 209 | . . 24 95 3 47 23 . 17 Critical Kills 2 | . . 1 1 . . . . . Critical Parts Destroyed 4 | . . . 3 . . 1 . . Critical Strikes 10 | . . 1 4 . . 1 . 4 Burn 1 | . . . . . . . . 1 Destroy 6 | . . 1 4 . . 1 . . Blast 3 | . . . . . . . . 3 Melee Attacks . | . . . . . . . . . Impact . | . . . . . . . . . Slashing . | . . . . . . . . . Piercing . | . . . . . . . . . Sneak Attacks . | . . . . . . . . . Combat Hostiles . | . . . . . . . . . Follow-up Attacks . | . . . . . . . . . Damage Inflicted 6753 | . . 494 2782 188 1271 811 15 1192 Guns 5259 | . . 494 2066 82 1070 811 15 721 Cannons 1474 | . . . 716 106 181 . . 471 Explosions . | . . . . . . . . . Melee . | . . . . . . . . . Ramming 20 | . . . . . 20 . . . Kinetic 6275 | . . 494 2677 82 1251 811 15 945 Thermal 206 | . . . . . . . . 206 Explosive . | . . . . . . . . . Electromagnetic 252 | . . . 105 106 . . . 41 Impact . | . . . . . . . . . Slashing . | . . . . . . . . . Piercing . | . . . . . . . . . Highest Corruption 13 | . . . . . 1 13 . 10 Average Corruption 4 | . . . . . 1 6 . 8 Corruption Purged . | . . . . . . . . . Corruption Blocked . | . . . . . . . . . Effects 14 | . . . . . 2 . . 12 Message Errors 4 | . . . . . 1 . . 3 Matter Fused 2 | . . . . . . . . 2 Heat Flow Errors 1 | . . . . . . . . 1 Energy Discharges 1 | . . . . . . . . 1 Parts Rejected 3 | . . . . . . . . 3 Data Loss (major) 1 | . . . . . . . . 1 Misfires 1 | . . . . . 1 . . . Weapon Failures 1 | . . . . . . . . 1 Overload Shots . | . . . . . . . . . Overflow Damage 11 | . . . . . . . . 11 Projectiles 11 | . . . . . . . . 11 Explosions . | . . . . . . . . . Melee . | . . . . . . . . . Knockbacks 19 | . . . 11 . 2 . . 6 Impact . | . . . . . . . . . Kinetic 16 | . . . 9 . 2 . . 5 Secondary 3 | . . . 2 . . . . 1 Self-Inflicted Damage 9 | . . . . . 9 . . . Shots . | . . . . . . . . . Rammed 4 | . . . . . 4 . . . Targets Rammed 4 | . . . . . 4 . . . Kicked . | . . . . . . . . . Crushed . | . . . . . . . . . Highest Temperature 195 | . . 13 195 64 76 11 . 126 Average Temperature 44 | . . 5 61 31 34 5 . 42 Received Heat Transfer 2709 | . . 246 1341 54 193 373 295 207 Siege Activations . | . . . . . . . . . Robots Corrupted 1 | . . . 1 . . . . . Combat Hostiles 1 | . . . 1 . . . . . Parts Fried 1 | . . . 1 . . . . . Impact Corruptions . | . . . . . . . . . Robots Melted . | . . . . . . . . . Combat Hostiles . | . . . . . . . . . Parts Melted . | . . . . . . . . . Heat Transferred 500 | . . . . . . . . 500 Parts Sabotaged . | . . . . . . . . . Parts Stolen . | . . . . . . . . . Parts Stripped . | . . . . . . . . . Power Chain Reactions . | . . . . . . . . . Alert | -11 -10 -9 -8 -7 -6 -5 -4 -3 ------- Run | Yrd Mat Mat Mat Fac Fac Fac Fac Res Peak Influence 560 | . 15 325 560 201 205 87 19 344 Initial 156 | . . 5 45 156 . 5 19 6 Average 134 | . 8 143 343 162 66 51 14 41 Maximum Alert Level 2 | . . 1 2 1 1 . . 1 Low Security (%) 72 | 100 100 81 20 49 89 100 100 92 Level 1 18 | . . 18 38 50 10 . . 7 Level 2 9 | . . . 41 . . . . . Level 3 . | . . . . . . . . . Level 4 . | . . . . . . . . . Level 5 . | . . . . . . . . . High Security . | . . . . . . . . . Max Security . | . . . . . . . . . Squads Dispatched 20 | . . 1 5 . 7 3 1 3 Investigation 4 | . . 1 1 . 1 . . 1 Extermination 5 | . . . . . 1 1 1 2 Reinforcement 5 | . . . 1 . 2 2 . . Assault . | . . . . . . . . . Garrison 6 | . . . 3 . 3 . . . Intercept . | . . . . . . . . . Searches Triggered . | . . . . . . . . . Construction Impeded . | . . . . . . . . . Haulers Reinforced 1 | . . . . . . 1 . . Active Scanning Responses . | . . . . . . . . . Cargo Convoy Interrupts . | . . . . . . . . . Stealth | -11 -10 -9 -8 -7 -6 -5 -4 -3 --------- Run | Yrd Mat Mat Mat Fac Fac Fac Fac Res Distress Signals 7 | . . 2 4 . . . . 1 Communications Jammed . | . . . . . . . . . Distress Signals . | . . . . . . . . . Times Spotted 155 | . 1 19 53 1 27 9 6 39 Peak Tracking Total 11 | . 1 4 9 1 11 3 5 9 Tactical Retreats 13 | . . . 4 . 1 . . 8 Traps | -11 -10 -9 -8 -7 -6 -5 -4 -3 ------- Run | Yrd Mat Mat Mat Fac Fac Fac Fac Res Traps Triggered 9 | . . 1 3 . 2 1 . 2 Indirectly . | . . . . . . . . . Trap Hack Attempts . | . . . . . . . . . Triggered . | . . . . . . . . . Disarmed . | . . . . . . . . . Reprogrammed . | . . . . . . . . . Reused . | . . . . . . . . . Traps Extracted . | . . . . . . . . . Installed . | . . . . . . . . . Triggered . | . . . . . . . . . Machines | -11 -10 -9 -8 -7 -6 -5 -4 -3 ---------- Run | Yrd Mat Mat Mat Fac Fac Fac Fac Res Machines Disabled 1 | . . . . . . . . 1 Max in Single Turn 1 | . . . . . . . . 1 Machines Repaired . | . . . . . . . . . Machines Dismantled . | . . . . . . . . . Machines Sabotaged . | . . . . . . . . . Overloaded Fab Kills . | . . . . . . . . . Hacking | -11 -10 -9 -8 -7 -6 -5 -4 -3 --------- Run | Yrd Mat Mat Mat Fac Fac Fac Fac Res Machines Accessed . | . . . . . . . . . Terminals . | . . . . . . . . . Fabricators . | . . . . . . . . . Repair Stations . | . . . . . . . . . Recycling Units . | . . . . . . . . . Scanalyzers . | . . . . . . . . . Garrison Access . | . . . . . . . . . Total Hacks . | . . . . . . . . . Successful . | . . . . . . . . . Failed . | . . . . . . . . . Catastrophic . | . . . . . . . . . Database Lockouts . | . . . . . . . . . Manual . | . . . . . . . . . Terminals . | . . . . . . . . . Fabricators . | . . . . . . . . . Repair Stations . | . . . . . . . . . Recycling Units . | . . . . . . . . . Scanalyzers . | . . . . . . . . . Garrison Access . | . . . . . . . . . Terminal Hacks . | . . . . . . . . . Fabricator Hacks . | . . . . . . . . . Repair Station Hacks . | . . . . . . . . . Recycling Unit Hacks . | . . . . . . . . . Scanalyzer . | . . . . . . . . . Garrison Access Hacks . | . . . . . . . . . Unauthorized Hacks . | . . . . . . . . . Terminals . | . . . . . . . . . Fabricators . | . . . . . . . . . Repair Stations . | . . . . . . . . . Recycling Units . | . . . . . . . . . Scanalyzers . | . . . . . . . . . Garrison Access . | . . . . . . . . . Data Cores Recovered . | . . . . . . . . . Used . | . . . . . . . . . Hacking Detections . | . . . . . . . . . Full Trace Events . | . . . . . . . . . Feedback Events . | . . . . . . . . . Feedback Blocked . | . . . . . . . . . Robot Schematics Acquired . | . . . . . . . . . Robots Built . | . . . . . . . . . Authchips . | . . . . . . . . . Time . | . . . . . . . . . Total Robot Build Rating . | . . . . . . . . . Part Schematics Acquired . | . . . . . . . . . Parts Built . | . . . . . . . . . Authchips . | . . . . . . . . . Time . | . . . . . . . . . Total Part Build Rating . | . . . . . . . . . Parts Repaired . | . . . . . . . . . Time . | . . . . . . . . . Parts Recycled . | . . . . . . . . . Recycled Matter . | . . . . . . . . . Retrieved Matter . | . . . . . . . . . Retrieved Components . | . . . . . . . . . Parts Scanalyzed . | . . . . . . . . . Part Schematics Acquired . | . . . . . . . . . Parts Damaged . | . . . . . . . . . Bothacking | -11 -10 -9 -8 -7 -6 -5 -4 -3 ------------ Run | Yrd Mat Mat Mat Fac Fac Fac Fac Res Used RIF Installer . | . . . . . . . . . Robots Hacked . | . . . . . . . . . Non-combat . | . . . . . . . . . Combat . | . . . . . . . . . Robot Hacks Applied . | . . . . . . . . . Relay Couplers Released . | . . . . . . . . . Fabnet Peak Effective % . | . . . . . . . . . Robots Rewired . | . . . . . . . . . Allies Hacked . | . . . . . . . . . Hacks Repelled . | . . . . . . . . . Allies | -11 -10 -9 -8 -7 -6 -5 -4 -3 -------- Run | Yrd Mat Mat Mat Fac Fac Fac Fac Res Total Allies . | . . . . . . . . . Largest Group . | . . . . . . . . . Highest-Rated Group . | . . . . . . . . . Highest-Rated Ally . | . . . . . . . . . Total Orders . | . . . . . . . . . Ally Attacks . | . . . . . . . . . Total Damage . | . . . . . . . . . Kills . | . . . . . . . . . Allies Corrupted . | . . . . . . . . . Allies Melted . | . . . . . . . . . Intel | -11 -10 -9 -8 -7 -6 -5 -4 -3 ------- Run | Yrd Mat Mat Mat Fac Fac Fac Fac Res Robot Analysis Total . | . . . . . . . . . Derelict Logs Recovered . | . . . . . . . . . Drone Launches . | . . . . . . . . . Drone Recoveries . | . . . . . . . . . Exploration | -11 -10 -9 -8 -7 -6 -5 -4 -3 ------------- Run | Yrd Mat Mat Mat Fac Fac Fac Fac Res Turns Passed 5858 | 70 58 530 1384 446 1196 677 561 936 Spaces Moved 3126 | 55 49 327 624 259 631 369 223 589 Core 246 | 27 . . . . 25 73 . 121 Treads 1985 | . . . 347 259 606 296 223 254 Legs 689 | 28 49 327 277 . . . . 8 Wheels . | . . . . . . . . . Hover . | . . . . . . . . . Flight 206 | . . . . . . . . 206 Fastest Speed 42 | 50 120 120 120 157 50 50 170 42 Average Speed 148 | 99 120 122 141 157 158 148 245 128 Slowest Speed 350 | 200 120 190 190 158 350 250 250 250 Overloaded Moves . | . . . . . . . . . Propulsion Burnouts . | . . . . . . . . . Robots Hopped 3 | . . . . . . . . 3 Cave-ins Triggered . | . . . . . . . . . Exploration Rate (%) 23 | 4 22 42 75 7 21 9 7 21 Regions Visited 8 Branch Regions . Pre-discovered Areas . | . . . . . . . . . Known Exits Taken . | . . . . . . . . . Unknown Exits Taken 8 | 1 1 1 1 1 1 1 1 . Scrap Searched . | . . . . . . . . . Spaces Dug . | . . . . . . . . . Terrain Destroyed 1 | . . . . . . . . 1 Melee . | . . . . . . . . . Projectile 1 | . . . . . . . . 1 AOE . | . . . . . . . . . Terrain Rammed . | . . . . . . . . . Walls Destroyed . | . . . . . . . . . Machines Disabled . | . . . . . . . . . Actions | -11 -10 -9 -8 -7 -6 -5 -4 -3 --------- Run | Yrd Mat Mat Mat Fac Fac Fac Fac Res Total 3904 | 69 48 411 943 293 752 444 239 705 Wait 95 | . . 11 50 3 10 . 1 20 Move 3113 | 54 48 326 623 258 630 368 222 584 Hop 2 | . . . . . . . . 2 Pick Up 71 | 9 . 6 15 8 7 11 2 13 Fast Attach 31 | 3 . 3 14 1 5 5 . . Attach 61 | 3 . 3 12 3 7 9 7 17 Detach 8 | . . 1 . . . 1 3 3 Swap 19 | . . 5 12 1 1 . . . Drop 56 | . . 5 25 9 10 . 3 4 Fire 435 | . . 51 192 10 78 50 1 53 Melee . | . . . . . . . . . Ram 4 | . . . . . 4 . . . Kick . | . . . . . . . . . Crush . | . . . . . . . . . Escape Stasis 9 | . . . . . . . . 9 Rewire . | . . . . . . . . . Trap . | . . . . . . . . . Miscellaneous . | . . . . . . . . . Route ------- -11/Scrapyard -10/Materials -9/Materials -8/Materials -7/Factory -6/Factory -5/Factory -4/Factory -3/Research History --------- Turn | Location | Event 9 | -11/Scrapyard | Discovered new exit (range 16) 71 | -11/Scrapyard | Entered Materials 110 | -10/Materials | Discovered new exit (range 14) 129 | -10/Materials | Entered another Materials area 129 | -9/Materials | Evolved 2 slots: Propulsion x1, Utility x1 302 | -9/Materials | Build established: Mutant 623 | -9/Materials | Discovered new exit (range 16) 659 | -9/Materials | Entered another Materials area 659 | -8/Materials | Evolved 2 slots: Power x1, Weapon x1 1029 | -8/Materials | Build established: Scavenger-Gunner 1533 | -8/Materials | Garrison activated, responded to threat 2015 | -8/Materials | Discovered new exit (range 16) 2043 | -8/Materials | Entered Factory 2043 | -7/Factory | Evolved 2 slots: Propulsion x1, Utility x1 2261 | -7/Factory | Build established: Tank 2475 | -7/Factory | Discovered new exit (range 9) 2489 | -7/Factory | Entered another Factory area 2489 | -6/Factory | Evolved 2 slots: Propulsion x1, Weapon x1 3422 | -6/Factory | Found Powered Armor 3680 | -6/Factory | Discovered new exit (range 13) 3685 | -6/Factory | Entered another Factory area 3685 | -5/Factory | Evolved 2 slots: Utility x1, Weapon x1 3699 | -5/Factory | Lost 15 parts (2p4n3u6w) 3979 | -5/Factory | Discovered new exit (range 5) 4347 | -5/Factory | System corruption reached 10% 4358 | -5/Factory | Lost 3 parts (3n) 4362 | -5/Factory | Entered another Factory area 4362 | -4/Factory | Evolved 2 slots: Propulsion x1, Utility x1 4873 | -4/Factory | Discovered new exit (range 16) 4923 | -4/Factory | Entered Research 4923 | -3/Research | Evolved 2 slots: Power x2 5691 | -3/Research | Lost 15 parts (2p7n6w) 5730 | -3/Research | System corruption reached 10% 5812 | -3/Research | Core integrity fell below 50% 5829 | -3/Research | Core integrity fell below 20% 5839 | -3/Research | Lost 3 parts (2n1w) 5859 | -3/Research | Destroyed by S-43 Plague with Heavy Machine Gun Last Messages --------------- 05807_ Slug penetrates Door. 05808_ Hardcell Cannon destroyed. 05809_ Slug penetrates Wall. 05809_ Penetrated by Slug. 05809_ Slug penetrates Wall. 05810_ Slug penetrates Terminal. 05811_ System corrupted: Biometal Medium Treads rejected. 05814_ Penetrated by Slug. 05816_ Slug penetrates U-05 Engineer. 05816_ U-05 Engineer destroyed. 05817_ Acquired 18 matter. 05819_ Slug penetrates Wall. 05820_ Slug penetrates S-43 Plague. 05820_ Slug penetrates Wall. 05824_ Slug penetrates R-10 Processor. 05844_ K-01 Serf cleans the Particle Synthesizer. 05849_ System corrupted: Heat flow error (+129). [Achievement: Achiever] Map ----- +----------------------------------------------------+ | | | | | | | | | | | | | | | | | | | | | | | | | | | | | | | | | | | ??????????????????????????????#################### | | ??????????????????????????????# = # | | ??????????????????????????????# ** # | | ??????????????????????????????? ** # "" | | ????????????????????????????????? ?# "" | | ??????????????????????????????????? ???#! "" | | ?????????????????????????????????####+####?# | | ?????????????????################# #?# | | ?????????? @ ######/## | | ?????????? s # | | ?????????? T | | ??????????? = # | | ??????????? #### # | | ????????????##################+### #??# # | | ?????????????????????????????????#########??# | | ?????????????##?????????????????????????????# | | ????????????## #######??????????????????????# | | ????????????# !!!#????????????########### | | ????????????# % !! #????????????# + | | ????????????# "" !! #??########### # | | ????????????#""" #??# #""" # | | ????????????#"T =#??# #""" # | | ????????????#""" #??# #""" # | | ????????????# "" #??# # # | | ????????????# #??? # # | | ????????????# #????? # # | | ?" ?????????#####=####??????? #####+##### | | "" #####+### #????????? ## ## | | ############+## | | " = "" | | T T" | | | | ############+## | +----------------------------------------------------+ Best States ------------- Heat Dissipation 46 Energy Generation 31 Energy Capacity 430 Matter Stores 300 Matter Capacity 300 Sight Range 16 Terrain Scan Density 10 Armor Coverage 400 Resistance: KI 20 Resistance: TH 20 Resistance: EX 20 Resistance: EM 20 Resistance: I 20 Resistance: S 20 Resistance: P 20 Propulsion Shielding 66 Weapon Shielding 66 Evasion (%) 61 Targeting Accuracy 8 Recoil Reduction 3 Offensive Hacking 10 Item Schematics ----------------- None Robot Schematics ------------------ None Fabricated ------------ Nothing Alien Tech Used ----------------- None Achievements -------------- Achiever Streaker Challenges ------------ None Game ------ Seed FusionSensorBattery Manual? 0 Play Time 01:16:31 Cumulative 39.7 hours Start 2024.03.14 @ 18:14:29 End 2024.03.15 @ 17:40:15 Sessions 5 Manual Loads 0 Difficulty Adventurer Special Mode None Game No. 97 Rogue 83 Adventurer 14 Explorer 0 Win Type - Total 0 Types 0/0/0/0/0/0/0/0/0 Lore% 20 Gallery% 32 Achievement% 25 Wizard Run 0 Options --------- Layout 1 ASCII 0 Keyboard 0 Movement Mouse Keybinds 0 Fullscreen 1 Font 24/Smallcaps Map View 50x35 Zoom Use 0% Tactical HUD 1 Map Filters NONE Filters NONE Steam 1 RUN: d0eda9ed-9adf-4a51-bb5e-b3af9080a6e5